Cogmind - Beta 10.1 *** ADVENTURER MODE // 2020.10.24 @ 12:57:54 Player: Kay Result: Destroyed by as-10577 with Assembled Blade Performance ------------- Evolutions (1) 500 Regions Visited (4) 800 Robots Destroyed (45) 225 Value Destroyed (750) 750 Prototype IDs (6) 120 Alien Tech Used (0) 0 Bonus (57) 57 TOTAL SCORE: 2452 Bonus ------- Follower Combat Kills 57 Cogmind --------- Core Integrity 0/400 Matter 169/300 Energy 23/100 System Corruption 8% Temperature Cool (29) Movement Core (50) Location -9/Mines Parts ------- > --- POWER (1) -------- (None) > --- PROPULSION (3) --- (None) > --- UTILITY (3) ------ (None) > --- WEAPON (2) ------- (None) > --- INVENTORY (4) ---- High-capacity Matter Pod (200) Peak State ------------ > --- POWER ------------ Light Nuclear Core > --- PROPULSION ------- Wheel Wheel Wheel > --- UTILITY ---------- High-capacity Storage Unit Improved Terrain Scanner Seismic Analyzer > --- WEAPON ----------- Particle Gun Slug Cannon > --- INVENTORY -------- Ion Engine Ion Engine Cooling System High-capacity Matter Pod Structural Scanner Improved Sensor Array Hardened Light Armor Plating Medium Laser Improved Light Cannon Improved Light Cannon Rocket Launcher Mining Laser [Rating: 17] Favorites ----------- Power Ion Engine Engine Ion Engine Power Core Light Nuclear Core Propulsion Wheel Wheel Wheel Utility Improved Terrain Scanner Device Improved Terrain Scanner Storage High-capacity Storage Unit Processor Seismic Analyzer Protection Hardened Light Armor Plating Weapon Slug Cannon Energy Gun Medium Laser Energy Cannon Beam Cannon Ballistic Gun Light Assault Rifle Ballistic Cannon Slug Cannon Launcher Rocket Launcher Special Weapon Mining Laser Build | -11 -10 -10 -9 -9 ------- Run | Scr Mat Min Mat Min Slots Evolved 2 | . . . 2 . Power . | . . . . . Propulsion 1 | . . . 1 . Utility 1 | . . . 1 . Weapon . | . . . . . Parts Attached 34 | 7 5 4 11 7 Power 6 | 1 2 . 2 1 Engine 5 | 1 2 . 1 1 Core 1 | . . . 1 . Reactor . | . . . . . Propulsion 6 | 2 . 2 2 . Treads . | . . . . . Leg . | . . . . . Wheel 6 | 2 . 2 2 . Hover . | . . . . . Flight . | . . . . . Utility 7 | 2 1 . 3 1 Device 3 | 1 . . 2 . Storage 2 | 1 1 . . . Processor 1 | . . . 1 . Hackware . | . . . . . Protection 1 | . . . . 1 Artifact . | . . . . . Weapon 15 | 2 2 2 4 5 Energy Gun 6 | 2 1 . 2 1 Energy Cannon 1 | . 1 . . . Ballistic Gun 2 | . . 1 . 1 Ballistic Cannon 4 | . . 1 2 1 Launcher 1 | . . . . 1 Special Weapon 1 | . . . . 1 Impact Weapon . | . . . . . Slashing Weapon . | . . . . . Piercing Weapon . | . . . . . Special Melee Weapon . | . . . . . Unidentified Prototypes . | . . . . . Parts Lost 16 | . . 2 1 13 Power 2 | . . . . 2 Propulsion 4 | . . 1 . 3 Utility 2 | . . . . 2 Weapon 8 | . . 1 1 6 Highest Loss Streak 9 | . . 2 1 9 Average Slot Usage (%) 95 | . 100 99 98 67 Engine 11 | . 14 14 10 . Core 1 | . . . . 7 Wheel 27 | . 28 27 32 18 Device 12 | . 14 14 10 7 Storage 12 | . 14 14 11 8 Processor 3 | . . . 11 8 Energy Gun 9 | . 17 2 6 3 Energy Cannon 7 | . 10 14 . . Ballistic Cannon 8 | . . 9 15 13 Naked Turns 60 | . . . . 60 Heaviest Build 49 | 12 43 48 49 49 Greatest Support 30 | 20 20 20 30 30 Greatest Overweight (x) 11 | . 2 4 1 11 Average Overweight (x) 1 | . 1 2 1 1 Largest Inventory Capacity 12 | 6 12 12 12 12 Average Capacity 11 | 5 10 12 12 10 Most Carried 12 | 4 9 12 12 11 Average Carried 9 | 2 6 11 11 8 Final Capacity 12 | 6 12 12 12 4 Final Carried 12 | 4 8 12 11 1 Class Distribution -------------------- 89% | Mutant 10% | Scavenger-Mutant Dominant Class ---------------- Mutant | -10/Materials Mutant | -10/Mines Mutant | -9/Materials Scavenger-Mutant | -9/Mines Resources | -11 -10 -10 -9 -9 ----------- Run | Scr Mat Min Mat Min Matter Collected 859 | 270 240 117 157 75 Remotely . | . . . . . Salvage Created 1000 | 122 453 215 135 75 Parts 67 | 12 22 20 9 4 Haulers Intercepted . | . . . . . Recyclers Shooed 1 | 1 . . . . Parts Field Recycled . | . . . . . Retrieved Matter . | . . . . . Parts Self-Destructed . | . . . . . Prevented . | . . . . . Kills | -11 -10 -10 -9 -9 ------- Run | Scr Mat Min Mat Min Combat Hostiles Destroyed 35 | . 10 11 3 11 Guns 12 | . 7 3 1 1 Cannons 15 | . 3 8 2 2 AOE 8 | . . . . 8 Classes Destroyed 9 | 2 3 . 2 2 Worker 1 | . . . 1 . Builder 2 | . . . 1 1 Tunneler 2 | 2 . . . . Recycler 1 | 1 . . . . Watcher 4 | . 3 . 1 . Swarmer 14 | . 6 8 . . Grunt 10 | . 4 3 3 . Sentry 2 | . . . . 2 Assembled 9 | . . . . 9 Best Kill Streak 10 | 3 4 3 4 10 Combat Bots Only 9 | . 3 3 2 9 Max Kills in Single Turn 7 | 1 2 2 1 7 Gunslinging . | . . . . . Exploded 7 | . . . . 7 Melee . | . . . . . Uniques/NPCs Destroyed . | . . . . . Combat | -11 -10 -10 -9 -9 -------- Run | Scr Mat Min Mat Min Damage Taken 1906 | . 235 180 181 1310 Core 489 | . 55 20 8 406 Absorbed by Shields . | . . . . . Core Remaining (%) 85 | 100 . 70 . . Volleys Fired 109 | 7 34 24 19 25 Largest 2 | 2 2 2 2 2 Hottest 113 | 90 110 110 113 113 Shots Fired 197 | 8 67 47 37 38 Gun 108 | 8 57 12 18 13 Cannon 86 | . 10 35 19 22 Launcher 2 | . . . . 2 Special 1 | . . . . 1 Kinetic 62 | . . 17 19 26 Thermal 94 | 7 43 30 4 10 Explosive 2 | . . . . 2 Electromagnetic 39 | 1 24 . 14 . Robot Hit Streak 22 | 3 21 22 8 10 Robot Miss Streak 4 | 1 1 2 4 3 Penetration Max . | . . . . . Secondary Targets 2 | . 2 . . . Max Gunslinging Chain 1 | . 1 . . . Shots Hit Robots 131 | 6 50 30 20 25 Core Hits 67 | 4 18 15 8 22 Critical Hits 6 | . . 1 3 2 Critical Kills 2 | . . 1 1 . Critical Parts Destroyed 3 | . . . 2 1 Melee Attacks . | . . . . . Impact . | . . . . . Slashing . | . . . . . Piercing . | . . . . . Sneak Attacks . | . . . . . Combat Hostiles . | . . . . . Follow-up Attacks . | . . . . . Damage Inflicted 2932 | 74 734 510 528 1086 Guns 1096 | 74 577 104 208 133 Cannons 1185 | . 157 406 320 302 Explosions 625 | . . . . 625 Melee . | . . . . . Ramming 2 | . . . . 2 Kinetic 815 | . . 153 320 342 Thermal 956 | 61 393 357 28 117 Explosive 625 | . . . . 625 Electromagnetic 534 | 13 341 . 180 . Impact . | . . . . . Slashing . | . . . . . Piercing . | . . . . . Highest Corruption 8 | . . . . 8 Average Corruption 4 | . . . . 4 Corruption Purged . | . . . . . Effects 2 | . . . . 2 Energy Discharges 1 | . . . . 1 Data Loss (minor) 1 | . . . . 1 Overload Shots . | . . . . . Overflow Damage 57 | . . 5 21 31 Projectiles 47 | . . 5 21 21 Explosions 10 | . . . . 10 Melee . | . . . . . Knockbacks 3 | . . 1 2 . Impact . | . . . . . Kinetic 3 | . . 1 2 . Secondary . | . . . . . Self-Inflicted Damage 49 | . . . . 49 Shots 2 | . . . . 2 Rammed 1 | . . . . 1 Targets Rammed 1 | . . . . 1 Kicked . | . . . . . Crushed . | . . . . . Highest Temperature 290 | 40 290 262 224 195 Average Temperature 87 | 18 96 102 82 69 Received Heat Transfer 606 | . 84 54 138 330 Effects 5 | . 5 . . . Energy Bleed 1 | . 1 . . . Interference 4 | . 4 . . . Siege Activations . | . . . . . Robots Corrupted . | . . . . . Combat Hostiles . | . . . . . Parts Fried 3 | . 3 . . . Impact Corruptions . | . . . . . Robots Melted . | . . . . . Combat Hostiles . | . . . . . Parts Melted 4 | . 2 2 . . Heat Transferred 2418 | 185 1036 814 74 309 Parts Sabotaged . | . . . . . Parts Stolen . | . . . . . Parts Stripped . | . . . . . Power Chain Reactions . | . . . . . Missiles Intercepted . | . . . . . Alert | -11 -10 -10 -9 -9 ------- Run | Scr Mat Min Mat Min Peak Influence 277 | 15 277 230 132 51 Initial 35 | . 8 . 35 16 Average 77 | 4 121 88 45 25 Maximum Alert Level 1 | . 1 1 . . Low Security (%) 95 | 100 89 94 100 100 Level 1 4 | . 10 5 . . Level 2 . | . . . . . Level 3 . | . . . . . Level 4 . | . . . . . Level 5 . | . . . . . High Security . | . . . . . Max Security . | . . . . . Squads Dispatched 3 | . 1 . 2 . Investigation 1 | . 1 . . . Extermination . | . . . . . Reinforcement 2 | . . . 2 . Assault . | . . . . . Garrison . | . . . . . Intercept . | . . . . . Construction Impeded 1 | . . . 1 . Haulers Reinforced . | . . . . . Stealth | -11 -10 -10 -9 -9 --------- Run | Scr Mat Min Mat Min Distress Signals 1 | . 1 . . . Communications Jammed . | . . . . . Distress Signals . | . . . . . Times Spotted 70 | . 17 13 8 32 Peak Tracking Total 18 | . 3 3 2 18 Tactical Retreats 2 | . . . . 2 Traps | -11 -10 -10 -9 -9 ------- Run | Scr Mat Min Mat Min Traps Triggered 2 | . 1 . 1 . Indirectly . | . . . . . Trap Hack Attempts . | . . . . . Triggered . | . . . . . Disarmed . | . . . . . Reprogrammed 4 | . 4 . . . Reused . | . . . . . Traps Extracted . | . . . . . Installed . | . . . . . Triggered . | . . . . . Machines | -11 -10 -10 -9 -9 ---------- Run | Scr Mat Min Mat Min Machines Disabled 2 | . . 1 1 . Max in Single Turn 1 | . . 1 1 . Machines Sabotaged . | . . . . . Garrisons Compromised . | . . . . . Overloaded Fab Kills . | . . . . . Fab Network Shutdowns . | . . . . . Hacking | -11 -10 -10 -9 -9 --------- Run | Scr Mat Min Mat Min Machines Accessed 14 | . 8 . 6 . Terminals 12 | . 7 . 5 . Fabricators . | . . . . . Repair Stations 2 | . 1 . 1 . Recycling Units . | . . . . . Scanalyzers . | . . . . . Garrison Access . | . . . . . Total Hacks 45 | . 22 . 23 . Successful 28 | . 11 . 17 . Failed 17 | . 11 . 6 . Catastrophic 1 | . 1 . . . Database Lockouts . | . . . . . Manual 18 | . 8 . 10 . Terminals 40 | . 21 . 19 . Fabricators . | . . . . . Repair Stations 5 | . 1 . 4 . Recycling Units . | . . . . . Scanalyzers . | . . . . . Garrison Access . | . . . . . Terminal Hacks 24 | . 11 . 13 . Robot Analysis 1 | . 1 . . . Prototype ID Bank 4 | . 4 . . . Terminal Index 1 | . . . 1 . Alert Level 4 | . 2 . 2 . Reprogram Traps 1 | . 1 . . . Maintenance Status 1 | . . . 1 . Surveillance Status 1 | . . . 1 . Recall Reinforcements 1 | . . . 1 . Hauler Manifests 3 | . 1 . 2 . Registered Components 2 | . . . 2 . Zone Layout 5 | . 2 . 3 . Fabricator Hacks . | . . . . . Repair Station Hacks 4 | . . . 4 . Scan Component 2 | . . . 2 . Repair 2 | . . . 2 . Recycling Unit Hacks . | . . . . . Scanalyzer . | . . . . . Garrison Access Hacks . | . . . . . Unauthorized Hacks . | . . . . . Terminals . | . . . . . Fabricators . | . . . . . Repair Stations . | . . . . . Recycling Units . | . . . . . Scanalyzers . | . . . . . Garrison Access . | . . . . . Data Cores Recovered . | . . . . . Used . | . . . . . Hacking Detections 14 | . 8 . 6 . Full Trace Events 1 | . 1 . . . Feedback Events . | . . . . . Feedback Blocked . | . . . . . Robot Schematics Acquired . | . . . . . Robots Built . | . . . . . Matter . | . . . . . Time . | . . . . . Total Robot Build Rating . | . . . . . Part Schematics Acquired . | . . . . . Parts Built . | . . . . . Matter . | . . . . . Time . | . . . . . Total Part Build Rating . | . . . . . Parts Repaired 2 | . . . 2 . Time 58 | . . . 58 . Parts Recycled . | . . . . . Recycled Matter . | . . . . . Retrieved Matter . | . . . . . Retrieved Components . | . . . . . Parts Scanalyzed . | . . . . . Part Schematics Acquired . | . . . . . Parts Damaged . | . . . . . Bothacking | -11 -10 -10 -9 -9 ------------ Run | Scr Mat Min Mat Min Used RIF Installer . | . . . . . Robots Hacked . | . . . . . Non-combat . | . . . . . Combat . | . . . . . Robot Hacks Applied . | . . . . . Relay Couplers Released . | . . . . . Robots Rewired . | . . . . . Allies Hacked . | . . . . . Hacks Repelled . | . . . . . Allies | -11 -10 -10 -9 -9 -------- Run | Scr Mat Min Mat Min Total Allies 4 | . . 4 . . Largest Group 4 | . . 4 1 . Highest-Rated Group 71 | . . 71 16 . Highest-Rated Ally 31 | . . 31 16 . Total Orders . | . . . . . Ally Attacks 10 | . . 8 2 . Total Damage 152 | . . 119 33 . Kills 4 | . . 2 2 . Allies Corrupted . | . . . . . Allies Melted . | . . . . . Intel | -11 -10 -10 -9 -9 ------- Run | Scr Mat Min Mat Min Robot Analysis Total 1 | . 1 . . . Derelict Logs Recovered 4 | . . 3 . 1 Drone Launches . | . . . . . Drone Recoveries . | . . . . . Exploration | -11 -10 -10 -9 -9 ------------- Run | Scr Mat Min Mat Min Turns Passed 2548 | 91 873 610 644 330 Spaces Moved 2003 | 76 730 466 457 274 Core 126 | 7 . . . 119 Treads . | . . . . . Legs . | . . . . . Wheels 1877 | 69 730 466 457 155 Hover . | . . . . . Flight . | . . . . . Fastest Speed 50 | 50 80 100 90 50 Average Speed 92 | 77 95 100 90 78 Slowest Speed 600 | 80 100 120 90 600 Overloaded Moves . | . . . . . Propulsion Burnouts . | . . . . . Robots Hopped . | . . . . . Cave-ins Triggered . | . . . . . Exploration Rate (%) 55 | 5 86 90 35 62 Regions Visited 4 Branch Regions 2 Pre-discovered Areas 1 | . . 1 . . Known Exits Taken . | . . . . . Unknown Exits Taken 4 | 1 1 1 1 . Scrap Searched 2 | . . 1 . 1 Spaces Dug . | . . . . . Terrain Destroyed 36 | . . 3 4 29 Melee . | . . . . . Projectile 11 | . . 3 4 4 AOE 25 | . . . . 25 Terrain Rammed . | . . . . . Walls Destroyed . | . . . . . Machines Disabled . | . . . . . Actions | -11 -10 -10 -9 -9 --------- Run | Scr Mat Min Mat Min Total 2498 | 100 836 563 651 348 Wait 305 | . 54 60 153 38 Move 1999 | 75 729 465 456 274 Hop . | . . . . . Pick Up 35 | 11 8 8 7 1 Fast Attach 5 | . . . 5 . Attach 18 | 7 . 2 3 6 Detach . | . . . . . Swap 11 | . 5 2 3 1 Drop 14 | . 5 2 5 2 Fire 109 | 7 34 24 19 25 Melee . | . . . . . Ram 1 | . . . . 1 Kick . | . . . . . Crush . | . . . . . Escape Stasis . | . . . . . Rewire 1 | . 1 . . . Trap . | . . . . . Miscellaneous . | . . . . . Route ------- -11/Scrapyard -10/Materials (discovered 4 exits: *Mat x3 / [*Min]) -10/Mines (discovered 2 exits: *Mat / [*Exi]) -9/Materials (discovered 2 exits: [*Mat] / [*Min]) -9/Mines History --------- Turn | Location | Event 11 | -11/Scrapyard | Discovered new exit (range 16) 92 | -11/Scrapyard | Entered Materials 308 | -10/Materials | Build established: Mutant 332 | -10/Materials | Discovered new exit (range 14) 445 | -10/Materials | Discovered new exit (range 11) 627 | -10/Materials | Discovered new exit (range 10) 835 | -10/Materials | Discovered new exit (range 16) 965 | -10/Materials | Entered Mines 974 | -10/Mines | Met a Derelict bent on vengeance 1156 | -10/Mines | A weapon hastily lodged in a ceiling crevice suddenly fell to the ground 1186 | -10/Mines | Learned 2 Materials zone layouts 1203 | -10/Mines | Learned Materials emergency access door positions 1285 | -10/Mines | Received a Mining Laser from a helpful Derelict 1429 | -10/Mines | Deemed a non-threat by the Exiles lab entrance 1429 | -10/Mines | Discovered new exit (range 5) 1503 | -10/Mines | Assisted by bots powering up and referring to "LRC-V3" 1508 | -10/Mines | Received a Rocket Launcher from a helpful Derelict 1560 | -10/Mines | Discovered new exit (range 9) 1575 | -10/Mines | Entered Materials 1575 | -9/Materials | Accompanied by 1 ally 1575 | -9/Materials | Evolved 2 slots: Propulsion x1, Utility x1 1778 | -9/Materials | Repaired Imp. Terrain Scanner 1805 | -9/Materials | Repaired Wheel 1980 | -9/Materials | Discovered new exit (range 16) 2203 | -9/Materials | Discovered new exit (range 15) 2219 | -9/Materials | Entered Mines 2277 | -9/Mines | Learned Materials stockpile data 2405 | -9/Mines | Assembled infested the area 2460 | -9/Mines | Core integrity fell below 50% 2469 | -9/Mines | Core integrity fell below 20% 2481 | -9/Mines | Destroyed 9 combat bots 2494 | -9/Mines | Lost 9 parts (2p2n2u3w) 2549 | -9/Mines | Destroyed by as-10577 with Assembled Blade Last Messages --------------- as-19693 destroyed. Acquired 1 matter. Hvy. Assault Rifle destroyed. System corrupted by crushing effect (+3). Knocked back. Acquired 11 matter. Dropped Hcp. Storage Unit. K-01 Serf collects debris. [Achievement: Slippery One] System corrupted: Component data lost. K-01 Serf destroyed. Med. Laser destroyed. System corrupted by crushing effect (+4). Destroyed Asb. Hover Unit. as-83222 sneak attacks. T-07 Excavator system corrupted by crushing effect. Mining Laser destroyed. T-07 Excavator system terminally corrupted. System corrupted: Energy discharge (-12). Dropped Hrd. Light Armor Plating. Map ----- +----------------------------------------------------+ | | | | | | | | | | | ?????????????????????????????????????? | | ?????????????????????????????????????? | | ?????????????????????#####???????????? | | ???????????????????## #???????????? | | ??????????????????## #???????????? | | ?????????????????## #???????????? | | ?????????????????# #????????????? | | ?????????????????# ##????????????? | | ????????????????## ####?????????????? | | ??????????####### ##????????????????? | | ???????#### ## ##????????????????? | | ??????## ##???????????????? | | ??????# ##??????????????? | | ??????# ##?????????????? | | ??????## ##????????????? | | ???????## ! #????????????? | | ????????# a a %## #????????????? | | ????????# ### #????????????? | | ????????## a a### #????????????? | | ?????????## a ## #????????????? | | ??????????## @ ### ##????????????? | | ???????????### #?####?????????????? | | ?????????????## a##?????????????????? | | ?????????????## a #######???????????? | | ???????# ## % ## ##??????????? | | ??????# ! #??????????? | | ?????# ## ! ##???###???? | | ?????# ????## %! #### ##??? | | ?????????????##### a #??? | | ?????????????????## #??? | | ??????????????????###### #??? | | ??????????????????##???## #??? | | ?????????????????? #???### ##??? | | ????#????????????? #???## ###???? | | ????#?????????#??? #### ##????? | | ???????#?#???????# ## #????# | | ???##??#????????## #?#??? | | ???????????##??#?# ## ###???? | | ???????##??###### ### ###?#??#? | | ??????#??#?#?#?# #### #?#?????? | | ????#??#???#?#?# ##??# #???#?### | | ???????###?#?#### ## #?#?# #?#???# | | ??????#??###?#?### ## ##?## #??##### | | #?????#?????#?#?## ## #??## #??????## | | ???????#?#??###### ## ##### ####???## | +----------------------------------------------------+ Best States ------------- Heat Dissipation 28 Energy Generation 14 Energy Capacity 250 Matter Stores 300 Matter Capacity 300 Sight Range 16 Terrain Scan Range 16 Terrain Scan Density 60 Armor Coverage 150 Resistance: KI 20 Resistance: TH 20 Resistance: EX 20 Resistance: EM 20 Resistance: I 20 Resistance: S 20 Resistance: P 20 Evasion (%) 50 Offensive Hacking 10 Item Schematics ----------------- None Robot Schematics ------------------ None Fabricated ------------ Nothing Alien Tech Used ----------------- None Achievements -------------- Slippery One Challenges ------------ None Game ------ Seed VisualEtherialCannon Manual? 0 Play Time 00:31:50 Cumulative 47.0 hours Start 2020.10.24 @ 12:27:10 End 2020.10.24 @ 12:57:54 Sessions 1 Manual Loads 0 Difficulty Adventurer Special Mode None Game No. 16 Rogue 0 Adventurer 16 Explorer 0 Win Type - Total 0 Types 0/0/0/0/0/0/0/0/0 Lore% 37 Gallery% 43 Achievement% 34 Wizard Run 0 Options --------- ASCII 0 Keyboard 0 Movement Mouse Keybinds 0 Fullscreen 2 Font 18/SmallcapsGlow Map View 76x50 Tactical HUD 0 Map Filters NONE Filters NONE Steam 1 RUN: f4e0aae1-2757-4ab5-944a-30edb1b2540f